bitfinex/quotes_SOLUSD_20241001
["timestamp","ask_amount","ask_price","bid_price","bid_amount"]
[1727742150513,6.5809,151.96,151.94,0.03356588]
[1727742151032,6.5811,151.95,151.94,0.03356588]
[1727742152227,48.425,151.95,151.94,0.03356588]
[1727742152543,48.425,151.95,151.94,6.588e-05]
[1727742153019,55.26774149,151.95,151.94,6.588e-05]
[1727742153514,33.42384149,151.95,151.94,6.588e-05]
[1727742154030,26.5811,151.95,151.94,6.588e-05]
[1727742157831,26.5811,151.95,151.89,0.8270209]
[1727742157832,26.5832,151.9,151.89,0.8270209]
[1727742158016,6.5832,151.9,151.89,0.8270209]
[1727742162161,26.5832,151.9,151.89,0.8270209]
[1727742162445,26.5832,151.9,151.89,0.3270209]
[1727742163041,6.5832,151.9,151.89,0.3270209]
[1727742165539,6.5824,151.92,151.89,1.64366518]
[1727742165750,1.64543046,151.94,151.89,0.3270209]
[1727742165918,6.5832,151.9,151.89,0.3270209]
[1727742167252,26.5832,151.9,151.89,0.3270209]
[1727742169928,26.5832,151.9,151.89,2.09e-05]
[1727742171748,6.5829,151.91,151.89,2.09e-05]
[1727742171956,49.3511,151.98,151.9,15.5134]
[1727742172249,6.582,151.93,151.9,15.5134]
[1727742172457,49.43333192,152.02,151.91,25.09311973]
[1727742172630,49.43333192,152.02,151.93,23.776884]
[1727742172631,58.84387555,152.02,151.93,23.776884]
[1727742172826,6.5807,151.96,151.93,23.776884]
[1727742173330,6.5811,151.95,151.9,15.5134]
[1727742173540,6.5811,151.95,151.91,23.776884]
[1727742173748,6.5806,151.97,151.91,23.776884]
[1727742173925,6.5807,151.96,151.91,23.776884]
[1727742174528,6.58,151.98,151.93,23.776884]
[1727742174723,6.58,151.98,151.92,1.31602086]
[1727742174724,6.84894015,152.05,151.97,16.3093]
[1727742174939,6.5787,152.01,151.98,1.31566998]
[1727742175338,6.5787,152.01,151.98,23.776884]
[1727742175842,1.64447235,152.05,151.97,16.3093]
[1727742176150,16.4446,152.03,151.93,15.4321]
[1727742176349,6.5812,151.95,151.93,15.4321]
[1727742176936,6.5815,151.94,151.93,15.4321]
[1727742177450,1.64525424,151.99,151.89,16.4916209]
[1727742177754,6.5832,151.9,151.89,16.4916209]
[1727742178544,6.5827,151.92,151.89,17.80821964]
[1727742178749,20.0,151.96,151.89,16.4916209]
[1727742178939,1.64553476,151.95,151.89,16.4916209]
[1727742179145,20.0,151.97,151.89,16.4916209]
[1727742179146,6.5827,151.92,151.89,16.4916209]
[1727742179450,6.5824,151.92,151.89,16.4916209]
[1727742180149,21.64543321,151.97,151.89,16.4916209]
[1727742180328,6.5832,151.9,151.89,16.4916209]
[1727742180750,6.5832,151.9,151.89,2.09e-05]
[1727742180985,26.5832,151.9,151.89,2.09e-05]
[1727742181653,6.5832,151.9,151.89,2.09e-05]
[1727742181848,20.0,151.91,151.89,2.09e-05]
[1727742182159,16.4529,151.95,151.89,2.09e-05]
[1727742182160,6.5832,151.9,151.89,2.09e-05]
[1727742183378,26.5832,151.9,151.89,2.09e-05]
[1727742184166,6.1998,151.98,151.89,2.09e-05]
[1727742184370,6.582,151.93,151.9,1.31636911]
[1727742184574,16.4488,151.99,151.89,2.09e-05]
[1727742184575,6.5824,151.92,151.89,2.09e-05]
[1727742184877,6.5828,151.91,151.89,23.7769049]
[1727742185079,6.5832,151.9,151.89,2.09e-05]
[1727742188672,6.5828,151.92,151.89,1.31664922]
[1727742188880,6.5828,151.91,151.89,2.09e-05]
[1727742189086,49.3547,151.97,151.89,1.31643906]
[1727742189263,6.5811,151.95,151.91,23.776884]
[1727742189456,6.5806,151.97,151.92,1.3161804]
[1727742189657,49.3398,152.01,151.94,16.5608]
[1727742189880,6.5811,151.95,151.94,16.5608]
[1727742190688,6.5824,151.92,151.91,23.776884]
[1727742191181,6.5828,151.91,151.9,15.4851]
[1727742192471,6.5832,151.9,151.89,2.09e-05]
[1727742193665,6.583,151.91,151.89,2.09e-05]
[1727742193963,6.5832,151.9,151.89,2.09e-05]
[1727742195973,26.5837,151.89,151.88,2.09e-05]
[1727742196182,26.5841,151.88,151.87,6.23e-05]
[1727742198394,6.5871,151.81,151.77,2.15]
[1727742199896,6.5871,151.81,151.8,0.9694104]
[1727742200886,69.3825,151.88,151.8,0.9694104]
[1727742201090,69.3825,151.88,151.81,1.31723421]
[1727742201091,6.5863,151.83,151.81,1.31723421]
[1727742201466,6.5858,151.85,151.81,1.31723421]
[1727742201693,6.85251632,151.9,151.82,1.31710317]
[1727742201876,6.5853,151.86,151.83,16.3757]
[1727742202183,6.5853,151.86,151.84,1.31697514]
[1727742202384,6.5853,151.86,151.83,16.3757]
[1727742202893,260.498,151.95,151.85,23.776884]
[1727742203188,6.5829,151.91,151.86,7.90146194]
[1727742203391,6.5829,151.91,151.87,1.31652969]
[1727742203606,6.5829,151.91,151.85,30.362184]
[1727742204593,6.2409,151.99,151.87,23.776884]
[1727742204802,6.5816,151.94,151.89,6.5835]
[1727742204976,6.581,151.96,151.9,6.5828]
[1727742205291,6.581,151.96,151.9,7.89904689]
[1727742205486,6.581,151.96,151.91,23.776884]
[1727742205879,6.84960987,152.03,151.93,23.776884]
[1727742206093,16.444,152.04,151.94,1.31586046]
[1727742206391,16.444,152.04,151.92,22.4159]
[1727742206392,1.64482557,152.02,151.93,23.776884]
[1727742206689,6.5804,151.97,151.92,28.9982]
[1727742206898,9.50685521,152.03,151.92,28.9982]
[1727742206899,6.5797,151.99,151.93,23.776884]
[1727742207079,16.4464,152.01,151.93,23.776884]
[1727742207285,6.5802,151.97,151.93,23.776884]
[1727742207799,6.5807,151.96,151.92,22.4159]
[1727742207994,16.4464,152.01,151.93,23.776884]
[1727742207995,6.5802,151.98,151.93,23.776884]
[1727742209283,6.5802,151.98,151.93,30.358684]
[1727742209474,6.5802,151.98,151.93,23.776884]
[1727742210101,34.02275128,152.04,151.93,23.776884]
[1727742210403,16.4454,152.02,151.92,22.4159]
[1727742210601,6.5807,151.96,151.92,22.4159]
[1727742211086,6.5801,151.98,151.92,28.9982]
[1727742211693,6.5789,152.0,151.93,23.776884]
[1727742211897,20.0,152.03,151.93,23.776884]
[1727742211898,1.13595128,152.04,151.96,6.5806]
[1727742212084,16.4419,152.06,151.96,6.5806]
[1727742212085,6.5784,152.02,151.96,6.5806]
[1727742212293,16.4419,152.06,151.97,1.31557461]
[1727742212489,7.98268548,152.08,151.94,30.03993062]
[1727742212490,6.5772,152.04,151.99,6.5792]
[1727742212804,6.5779,152.03,151.98,23.776884]
[1727742213586,6.5785,152.01,151.96,23.0312]
[1727742213787,6.5798,151.99,151.93,46.813184]
[1727742213997,6.5804,151.97,151.92,22.4159]
[1727742214986,6.5804,151.97,151.92,22.7677318]
[1727742215488,6.5804,151.97,151.92,29.3500318]
[1727742216982,6.5797,151.99,151.93,25.09283715]
[1727742217199,32.8854,152.05,151.93,25.09283715]
[1727742217200,16.442,152.05,151.94,1.31577361]
[1727742217397,20.0,152.04,151.95,23.776884]
[1727742217598,20.0,152.04,151.97,6.5801]
[1727742217799,6.5781,152.02,151.98,1.31557471]
[1727742218398,6.5781,152.02,151.97,6.5801]
[1727742219109,6.5788,152.01,151.96,23.0321]
[1727742219313,16.442,152.05,151.93,16.4548]
[1727742219314,21.64440871,152.04,151.93,16.4548]
[1727742219485,20.0,152.04,151.94,1.31569095]
[1727742220308,6.5784,152.02,151.96,6.5805]
[1727742220505,20.0,152.04,151.93,16.4548]
[1727742220807,1.64449579,152.03,151.95,6.5811]
[1727742221199,20.0,152.04,151.95,6.5811]
[1727742221404,20.0,152.04,151.96,7.89624594]
[1727742221714,20.0,152.04,151.96,6.5806]
[1727742222236,6.5777,152.03,151.98,6.5797]
[1727742222420,6.5781,152.02,151.97,6.5802]
[1727742222715,1.64436095,152.07,151.96,23.776884]
[1727742222716,6.578,152.03,151.98,1.31554185]
[1727742222894,6.5771,152.05,152.0,15.2311]
[1727742223095,6.5763,152.06,152.01,7.89364166]
[1727742223297,6.5769,152.05,152.0,21.2636]
[1727742223508,6.5769,152.05,152.0,27.8423]
[1727742224796,6.5772,152.04,152.0,21.2636]
[1727742226032,1.64414566,152.09,152.0,21.2636]
[1727742226217,6.5785,152.01,152.0,15.2311]
[1727742227422,20.0,152.08,152.0,15.2311]
[1727742227812,6.5772,152.04,152.0,15.2311]
[1727742228404,6.5775,152.04,152.0,15.2311]
[1727742228606,20.0,152.1,152.0,21.8099]
[1727742228804,6.5772,152.04,152.0,15.2311]
[1727742229444,20.0,152.08,152.0,15.2311]
[1727742229742,20.0,152.1,152.0,15.2311]
[1727742229743,6.5785,152.01,152.0,15.2311]
[1727742229924,6.5791,152.0,151.96,22.3324]
[1727742230099,6.5791,152.0,151.96,22.6842318]
[1727742230525,6.5784,152.02,151.97,1.3156414]
[1727742230820,6.5786,152.01,151.97,1.3156414]
[1727742231329,16.4387,152.09,151.98,23.776884]
[1727742231523,6.5772,152.04,151.99,6.5793]
[1727742233309,6.5768,152.05,152.0,7.89414825]
[1727742234715,6.5768,152.05,151.98,23.776884]
[1727742234716,6.5759,152.07,152.02,6.5779]
[1727742234928,6.5759,152.07,152.03,16.3515]
[1727742234929,6.576,152.07,152.03,16.3515]
[1727742235138,1.13463771,152.14,152.04,25.09194001]
[1727742235318,59.04273695,152.2,152.04,25.09194001]
[1727742235319,6.5733,152.13,152.04,25.09194001]
[1727742235633,6.5733,152.14,152.08,23.776884]
[1727742235844,6.5724,152.15,152.09,6.5746]
[1727742236334,1.64308166,152.18,152.09,6.5746]
[1727742236335,6.573,152.14,152.09,6.5746]
[1727742236631,21.64308166,152.18,152.07,23.015]
[1727742236841,6.5733,152.14,152.08,1.31457068]
[1727742237345,6.5735,152.13,152.08,1.31457068]
[1727742237638,6.5729,152.14,152.08,6.575]
[1727742238238,6.5735,152.13,152.07,23.0153]
[1727742238416,16.43,152.16,152.07,16.4395]
[1727742238740,18.07322211,152.16,152.07,16.4395]
[1727742239036,6.5738,152.12,152.07,23.0153]
[1727742239631,16.43,152.16,152.08,1.31460529]
[1727742239835,6.5733,152.13,152.08,1.31460529]
[1727742240223,16.43,152.16,152.07,23.0153]
[1727742240528,6.5737,152.12,152.07,23.0153]
[1727742240738,6.5737,152.12,152.08,1.3146168]
[1727742240908,20.0,152.18,152.08,1.3146168]
[1727742241110,20.0,152.18,152.1,16.3906]
[1727742241425,20.0,152.18,152.11,1.31442592]
[1727742241620,20.0,152.19,152.1,16.3906]
[1727742241817,20.0,152.19,152.06,16.6656]
[1727742241818,6.5747,152.1,152.06,16.6656]
[1727742242019,1.64343442,152.15,152.06,16.6656]
[1727742242906,6.5746,152.1,152.06,16.6656]
[1727742243215,20.0,152.17,152.06,16.6656]
[1727742243405,6.5733,152.14,152.09,6.575]
[1727742243805,21.64310826,152.17,152.07,6.5758]
[1727742244034,6.5739,152.12,152.07,6.5758]
[1727742244238,6.5733,152.14,152.08,1.31468387]
[1727742244527,6.5733,152.14,152.06,33.1058]
[1727742244528,6.5733,152.14,152.09,6.5748]
[1727742244925,6.5733,152.14,152.08,6.5754]
[1727742245327,6.5733,152.14,152.09,6.5749]
[1727742246139,20.0,152.17,152.1,1.31445936]
[1727742246307,20.0,152.18,152.1,1.31445936]
[1727742246727,6.572,152.16,152.11,7.88813969]
[1727742246940,6.572,152.16,152.12,16.0593]
[1727742247123,6.5724,152.15,152.12,16.0593]
[1727742247333,6.5729,152.14,152.12,16.0593]
[1727742248739,6.5745,152.11,152.09,6.0831]
[1727742249144,1.64333881,152.16,152.08,16.2405318]
[1727742249319,6.575,152.09,152.08,0.3518318]
[1727742250721,26.575,152.09,152.08,0.3518318]
[1727742251041,6.5767,152.06,152.05,1.31524077]
[1727742251243,6.5768,152.05,152.01,6.0149]
[1727742251625,6.5768,152.05,152.02,1.31524894]
[1727742251951,6.5763,152.06,152.02,1.31524894]
[1727742252647,6.5763,152.06,152.01,12.5933]
[1727742253155,6.5759,152.07,152.02,1.31516355]
[1727742253617,16.4334,152.13,152.02,23.776884]
[1727742253818,6.575,152.09,152.04,6.577]
[1727742254038,6.575,152.09,152.05,1.31496342]
[1727742254950,6.575,152.09,152.05,23.776884]
[1727742255348,20.0,152.12,152.05,23.776884]
[1727742255529,26.5738,152.12,152.06,7.89072074]
[1727742255730,6.5738,152.12,152.07,15.6573]
[1727742255934,6.5744,152.11,152.07,15.6573]
[1727742256140,6.5754,152.09,152.07,15.6573]
[1727742256952,6.5763,152.06,152.03,15.7506]
[1727742257361,6.5759,152.07,152.03,15.7506]
[1727742257529,6.5754,152.09,152.04,1.31512698]
[1727742257856,6.5756,152.08,152.03,22.3278]
[1727742258031,6.5759,152.07,152.03,15.7506]
[1727742258230,16.4352,152.12,152.03,15.7506]
[1727742258546,6.5762,152.07,152.04,1.31509009]
[1727742259238,6.5762,152.07,152.03,15.7506]
[1727742259434,6.5764,152.06,152.03,15.7506]
[1727742259652,6.5759,152.07,152.04,1.31509748]
[1727742260022,46.13227288,152.16,152.03,15.7506]
[1727742260352,20.0,152.14,152.06,6.5759]
[1727742260525,21.64346234,152.14,152.06,6.5759]
[1727742261032,20.0,152.14,152.06,6.5759]
[1727742261236,6.5741,152.12,152.07,7.89053585]
[1727742261638,1.64333218,152.14,152.06,16.4401]
[1727742261840,6.5751,152.09,152.04,23.776884]
[1727742262356,6.5751,152.09,152.03,38.7719]
[1727742262357,6.5758,152.08,152.03,38.7719]
[1727742262753,6.576,152.07,152.03,15.7506]
[1727742263347,20.0,152.12,152.03,15.7506]
[1727742263646,6.5751,152.09,152.04,6.5768]
[1727742265252,6.576,152.07,152.03,15.7506]
[1727742265746,6.5755,152.08,152.04,1.31509352]
[1727742265948,6.5742,152.11,152.06,6.5761]
[1727742266155,6.5742,152.11,152.07,1.31477831]
[1727742266652,6.5742,152.11,152.05,23.776884]
[1727742266653,6.5724,152.16,152.11,6.574]
[1727742266856,1.13502911,152.18,152.12,1.31446682]
[1727742267047,16.4267,152.2,152.12,1.31446682]
[1727742267840,6.5724,152.16,152.12,1.31446682]
[1727742268035,6.5724,152.16,152.11,6.5741]
[1727742268454,18.06959137,152.2,152.11,6.5741]
[1727742268626,6.5716,152.17,152.11,6.5741]
[1727742269244,6.5725,152.15,152.1,15.951]
[1727742269449,6.5711,152.18,152.12,6.5733]
[1727742269629,6.5711,152.18,152.13,1.31415737]
[1727742269826,6.5707,152.19,152.11,40.211384]
[1727742270046,6.5707,152.19,152.13,23.776884]
[1727742270560,6.5707,152.19,152.13,30.350084]
[1727742271143,6.5697,152.22,152.17,6.1899]
[1727742271364,6.5697,152.22,152.18,1.3139372]
[1727742271730,17.55481334,152.26,152.18,1.3139372]
[1727742271931,6.5699,152.21,152.18,1.3139372]
[1727742272537,6.5691,152.23,152.18,7.8848372]
[1727742272741,6.5694,152.22,152.18,1.3139372]
[1727742272941,6.5694,152.22,152.17,22.6186]
[1727742273552,6.5698,152.21,152.17,6.1899]
[1727742273873,6.5718,152.17,152.14,16.4412]
[1727742274040,21.64262499,152.22,152.14,16.4412]
[1727742274355,6.5716,152.17,152.14,16.4412]
[1727742275462,20.0,152.2,152.14,16.4412]
[1727742275866,6.5724,152.15,152.14,16.4412]
[1727742276061,6.573,152.14,152.1,32.8452]
[1727742276461,20.0,152.2,152.1,32.8452]
[1727742276767,6.5724,152.15,152.11,1.31445217]
[1727742276962,20.0,152.2,152.11,1.31445217]
[1727742277162,20.0,152.23,152.12,16.4334]
[1727742277364,20.0,152.23,152.13,1.31413817]
[1727742278173,6.5707,152.19,152.14,6.5728]
[1727742278369,6.5707,152.19,152.15,1.31413069]
[1727742279348,6.5698,152.22,152.16,6.5719]
[1727742279554,20.64377873,152.27,152.18,15.0945]
[1727742279846,6.57,152.21,152.18,15.0945]
[1727742280671,6.5694,152.22,152.18,15.0945]
[1727742280855,17.2454209,152.27,152.19,1.31383476]
[1727742280856,0.8270209,152.27,152.19,1.31383476]
[1727742281061,0.8270209,152.27,152.22,6.5694]
[1727742281372,0.8270209,152.27,152.23,7.88206708]
[1727742282166,0.8270209,152.27,152.22,6.5694]
[1727742282379,0.8270209,152.27,152.23,16.4222]
[1727742282551,0.8270209,152.27,152.26,6.5677]
[1727742282879,0.8270209,152.27,152.26,7.88075437]
[1727742283464,0.8270209,152.27,152.23,16.4222]
[1727742283662,7.3946209,152.27,152.22,23.776884]
[1727742284056,6.5685,152.25,152.21,21.5147]
[1727742285177,0.8270209,152.27,152.21,15.0395]
[1727742285360,2.4691065,152.27,152.21,15.0395]
[1727742285675,6.5691,152.23,152.21,15.0395]
[1727742285863,2.4691065,152.27,152.17,22.2541]
[1727742286076,6.5694,152.22,152.18,1.31381759]
[1727742286565,6.5694,152.22,152.17,22.2541]
[1727742286956,6.5694,152.22,152.18,1.31384693]
[1727742289468,6.5681,152.26,152.2,6.5701]
[1727742289803,7.3943209,152.27,152.22,6.5693]
[1727742289956,7.3943209,152.27,152.23,1.31343175]
[1727742291963,0.8270209,152.27,152.25,15.1041]
[1727742292185,0.8270209,152.27,152.26,1.31317165]
[1727742293086,0.8270209,152.27,152.25,21.6722]
[1727742293684,0.8270209,152.27,152.25,15.1041]
[1727742294096,7.3942209,152.27,152.25,15.1041]
[1727742294304,6.5686,152.24,152.19,15.1041]
[1727742294519,6.5682,152.25,152.2,6.5701]
[1727742295691,6.5691,152.23,152.19,31.5307]
[1727742295911,0.8270209,152.27,152.19,31.5307]
[1727742296100,6.5685,152.25,152.2,6.5702]
[1727742297884,6.5685,152.25,152.19,31.5307]
[1727742297885,6.5677,152.26,152.21,6.5697]
[1727742299003,6.5681,152.25,152.21,6.5697]
[1727742299500,0.8270209,152.27,152.22,1.3135423]
[1727742299706,6.5677,152.26,152.22,1.3135423]
[1727742300199,6.5677,152.26,152.21,6.5697]
[1727742300688,6.5685,152.25,152.2,30.347084]
[1727742301299,6.5685,152.25,152.19,31.5307]
[1727742301300,1.64187669,152.26,152.19,15.1041]
[1727742301502,1.64187669,152.26,152.17,6.4752]
[1727742301695,6.5703,152.2,152.17,6.4752]
[1727742302013,6.5698,152.21,152.17,6.4752]
[1727742302387,6.5707,152.2,152.15,15.8853]
[1727742303414,1.96186977,152.27,152.16,16.43]
[1727742303621,6.5685,152.25,152.2,6.5702]
[1727742303794,26.5686,152.24,152.19,22.9974]
[1727742304315,6.5681,152.25,152.2,6.5702]
[1727742304611,0.8270209,152.27,152.19,16.4267]
[1727742304829,0.8270209,152.27,152.21,6.5698]
[1727742304830,6.5677,152.26,152.21,6.5698]
[1727742306298,6.5681,152.25,152.2,30.347084]
[1727742306611,6.5681,152.25,152.2,6.5702]
[1727742306821,1.64191953,152.24,152.15,32.3157]
[1727742307019,20.0,152.25,152.15,32.3157]
[1727742307196,20.0,152.25,152.15,15.8853]
[1727742307197,1.64250972,152.24,152.15,15.8853]
[1727742307695,6.5703,152.2,152.15,15.8853]
[1727742307894,6.5703,152.2,152.15,22.4575]
[1727742308097,1.64256621,152.23,152.13,22.811]
[1727742308400,20.0,152.21,152.13,16.4333]
[1727742308720,1.6427823,152.2,152.13,16.4333]
[1727742309100,6.5717,152.17,152.13,16.4333]
[1727742309294,6.5717,152.17,152.12,6.5737]
[1727742309500,1.6427823,152.2,152.11,6.5741]
[1727742309501,6.572,152.16,152.11,6.5741]
[1727742309904,1.6427823,152.2,152.1,15.2223]
[1727742310096,6.5732,152.14,152.1,15.2223]
[1727742311217,6.5732,152.14,152.09,6.5749]
[1727742312917,6.5725,152.15,152.09,6.5749]
[1727742313301,20.0,152.21,152.12,6.5733]
[1727742313503,6.5712,152.18,152.13,1.31437649]
[1727742313901,20.0,152.21,152.13,1.31437649]
[1727742314122,6.5717,152.17,152.12,6.5733]
[1727742314422,6.5721,152.16,152.1,23.0098]
[1727742314909,6.5725,152.15,152.1,23.0098]
[1727742315114,6.5729,152.14,152.1,16.4356]
[1727742316227,18.06967414,152.2,152.07,23.776884]
[1727742316431,6.5733,152.13,152.08,6.5754]
[1727742317226,43.776884,152.17,152.07,16.4397]
[1727742317417,43.776884,152.17,152.08,1.31471892]
[1727742317418,20.0,152.17,152.08,1.31471892]
[1727742317602,6.5724,152.15,152.1,23.0109]
[1727742321910,20.0,152.17,152.11,6.5741]
[1727742322132,6.5718,152.17,152.12,7.88774468]
[1727742322915,6.5712,152.18,152.13,6.5732]
[1727742323130,6.5712,152.18,152.14,1.31430324]
[1727742323434,5.52310108,152.25,152.14,1.31430324]
[1727742323435,22.8701,152.26,152.14,30.03993062]
[1727742323666,6.5683,152.25,152.18,16.4268]
[1727742323811,0.8270209,152.27,152.18,16.4268]
[1727742324017,6.5678,152.26,152.21,6.5698]
[1727742324315,7.3943209,152.27,152.21,6.5698]
[1727742324620,6.5679,152.26,152.21,6.5698]
[1727742325042,7.3944209,152.27,152.22,6.5693]
[1727742325226,7.3946209,152.27,152.23,1.31346898]
[1727742325942,0.8270209,152.27,152.24,16.4214]
[1727742326236,0.8270209,152.27,152.26,6.5677]
[1727742326816,0.8270209,152.27,152.25,23.776884]
[1727742327035,0.8270209,152.27,152.26,31.65766428]
[1727742327243,0.8270209,152.27,152.26,30.344584]
[1727742327627,0.8270209,152.27,152.26,61.69745206]
[1727742327818,22.5971,152.42,152.3,16.4147]
[1727742328020,6.1944,152.42,152.31,1.31258921]
[1727742328349,6.5609,152.42,152.34,6.5642]
[1727742328533,0.8270209,152.43,152.35,31.35226229]
[1727742328852,0.8270209,152.43,152.38,6.5624]
[1727742329029,0.8270209,152.43,152.39,1.3119895]
[1727742329346,7.3874209,152.43,152.37,32.3456]
[1727742330118,0.8270209,152.43,152.37,32.3456]
[1727742330449,0.8270209,152.43,152.41,22.9642]
[1727742330760,0.8270209,152.43,152.42,25.08850996]
[1727742330915,0.8270209,152.43,152.42,23.776884]
[1727742331118,0.8270209,152.43,152.38,23.776884]
[1727742331619,0.8270209,152.43,152.4,23.776884]
[1727742331847,0.8270209,152.43,152.37,15.9393]
[1727742332141,0.8270209,152.43,152.31,30.03993062]
[1727742332142,6.5615,152.41,152.32,15.3605]
[1727742332316,6.5615,152.41,152.35,6.5637]
[1727742332515,7.3877209,152.43,152.35,6.5637]
[1727742332742,7.3877209,152.43,152.36,7.87532755]
[1727742332925,0.8270209,152.43,152.38,6.5622]
[1727742333125,0.8270209,152.43,152.39,7.87395015]
[1727742333748,0.8270209,152.43,152.4,30.338384]
[1727742333930,0.8270209,152.43,152.41,1.31180163]
[1727742334253,0.8270209,152.43,152.4,30.338384]
[1727742335237,0.8270209,152.43,152.38,6.5621]
[1727742335426,0.8270209,152.43,152.38,23.776884]
[1727742336854,0.8270209,152.43,152.4,6.5616]
[1727742337060,0.8270209,152.43,152.42,6.5608]
[1727742337233,0.8270209,152.43,152.42,30.337684]
[1727742337563,0.8270209,152.43,152.41,30.338084]
[1727742338227,0.8270209,152.43,152.42,31.64938276]
[1727742338427,6.5568,152.52,152.46,6.5589]
[1727742338737,6.5568,152.52,152.47,1.31124883]
[1727742338934,6.5568,152.52,152.47,21.90037446]
[1727742339160,6.0486,152.56,152.47,21.90037446]
[1727742339337,6.5553,152.55,152.49,6.5577]
[1727742339529,6.5549,152.56,152.5,6.5572]
[1727742340152,0.8270209,152.58,152.54,6.5553]
[1727742340359,0.8270209,152.58,152.55,1.31066144]
[1727742340557,0.8270209,152.58,152.55,7.86576144]
[1727742340850,0.8270209,152.58,152.56,6.5547]
[1727742341164,0.8270209,152.58,152.57,1.3104356]
[1727742341458,0.8270209,152.58,152.57,23.776884]
[1727742341758,6.4221,152.72,152.61,16.3806]
[1727742341938,0.8270209,152.73,152.62,1.30982896]
[1727742342126,6.5484,152.71,152.64,6.5511]
[1727742342326,6.5489,152.7,152.63,23.776884]
[1727742342559,0.8270209,152.73,152.62,23.776884]
[1727742342852,0.8270209,152.73,152.69,6.5492]
[1727742343065,0.8270209,152.73,152.7,23.776884]
[1727742343361,0.8270209,152.73,152.72,23.776884]
[1727742343727,0.8270209,152.73,152.72,25.0856743]
[1727742343934,6.5432,152.83,152.76,23.776884]
[1727742344250,6.5432,152.83,152.75,6.5465]
[1727742344251,2.21650597,152.88,152.77,1.3086189]
[1727742344436,2.21650597,152.88,152.76,6.546]
[1727742344437,6.5433,152.83,152.76,6.546]
[1727742344759,1.0836857,152.88,152.77,30.322484]
[1727742344760,6.5429,152.84,152.77,30.322484]
[1727742344969,2.71937235,152.88,152.74,64.5917518]
[1727742344970,1.6355744,152.83,152.74,16.3666]
[1727742345129,6.5446,152.8,152.74,16.3666]
[1727742345646,6.5433,152.83,152.75,30.323384]
[1727742345838,6.5437,152.82,152.75,30.323384]
[1727742346034,2.71935363,152.88,152.75,23.776884]
[1727742346233,6.5446,152.8,152.75,23.776884]
[1727742346444,6.545,152.79,152.74,16.3666]
[1727742346762,6.5454,152.78,152.72,23.776884]
[1727742347341,6.5459,152.77,152.72,23.776884]
[1727742347853,1.63614628,152.83,152.73,1.30897588]
[1727742347854,6.5452,152.79,152.73,1.30897588]
[1727742348032,6.5452,152.79,152.72,23.776884]
[1727742348230,6.5459,152.77,152.71,48.2251518]
[1727742348434,6.5459,152.77,152.7,6.5487]
[1727742348633,6.5459,152.77,152.71,1.30904372]
[1727742348939,43.776884,152.83,152.72,23.776884]
[1727742349144,6.5453,152.78,152.73,16.3685]
[1727742349656,6.5453,152.78,152.74,1.30895244]
[1727742349959,6.5448,152.8,152.74,1.30895244]
[1727742350144,6.5442,152.81,152.74,7.85565244]
[1727742350460,6.5442,152.81,152.74,1.30895244]
[1727742350657,6.5442,152.81,152.75,6.5465]
[1727742350835,6.5446,152.8,152.74,48.2251518]
[1727742351151,21.63595087,152.84,152.73,16.3685]
[1727742351348,6.5459,152.77,152.72,23.776884]
[1727742351545,21.63595087,152.84,152.7,6.5486]
[1727742351749,23.776884,152.83,152.7,6.5486]
[1727742352137,6.5463,152.76,152.7,6.5486]
[1727742352335,43.776884,152.81,152.69,16.3729]
[1727742352751,1.63651114,152.8,152.66,22.9178]
[1727742352950,6.5452,152.79,152.7,48.2251518]
[1727742353156,32.7108,152.86,152.66,16.3677]
[1727742353157,6.5441,152.81,152.73,48.2251518]
[1727742353342,6.0429,152.9,152.73,48.2251518]
[1727742353343,6.5436,152.83,152.76,6.5461]
[1727742353543,6.5436,152.83,152.77,6.5457]
[1727742353852,6.5437,152.82,152.76,54.7712518]
[1727742354148,16.354,152.87,152.74,22.9138]